fUSD/lending_fUSD_20240624
["ID","MTS","AMOUNT","RATE_DAILY","PERIOD"]
[330291022,1719234664506,-1104.05,0.00020547,4]
[330291023,1719234664515,-500.0,0.00020547,4]
[330291024,1719234664525,-790.0,0.00020547,4]
[330291025,1719234664539,-500.0,0.00020547,4]
[330291026,1719234664549,-500.0,0.00020547,4]
[330291027,1719234664558,-950.44,0.00020547,4]
[330291028,1719234664567,-500.0,0.00020547,4]
[330291029,1719234664579,-775.48,0.00020547,4]
[330291030,1719234664588,-3276.0,0.00020547,4]
[330291031,1719234664597,-500.0,0.00020547,4]
[330291032,1719234664609,-713.29,0.00020547,4]
[330291033,1719234664619,-500.0,0.00020547,4]
[330291034,1719234664629,-500.0,0.00020547,4]
[330291035,1719234664644,-500.0,0.00020547,4]
[330291036,1719234664653,-832.62,0.00020547,4]
[330291037,1719234664662,-803.86,0.00020547,4]
[330291038,1719234664672,-500.0,0.00020547,4]
[330291039,1719234664682,-832.67,0.00020547,4]
[330291040,1719234664692,-997.41,0.00020547,4]
[330291041,1719234664702,-689.81,0.00020547,4]
[330291042,1719234664711,-500.0,0.00020547,4]
[330291043,1719234664720,-500.0,0.00020547,4]
[330291044,1719234664730,-500.0,0.00020547,4]
[330291045,1719234664739,-1136.57,0.00020547,4]
[330291046,1719234664750,-594.74,0.00020547,4]
[330291047,1719234664760,-500.0,0.00020547,4]
[330291048,1719234664771,-500.0,0.00020547,4]
[330291049,1719234664780,-500.0,0.00020547,4]
[330291050,1719234664790,-556.0,0.00020547,4]
[330291051,1719234664800,-2120.74,0.00020547,4]
[330291052,1719234664810,-500.0,0.00020547,4]
[330291053,1719234664820,-500.0,0.00020547,4]
[330291054,1719234664829,-1028.46,0.00020547,4]
[330291055,1719234664838,-500.0,0.00020547,4]
[330291056,1719234664848,-500.0,0.00020547,4]
[330291057,1719234664858,-747.27,0.00020547,4]
[330291058,1719234664868,-170.059563,0.00020547,2]
[330291059,1719234664877,-622.5,0.00020547,4]
[330291060,1719234664890,-426.43,0.00020547,4]
[330291061,1719234664900,-500.0,0.00020547,4]
[330291062,1719234664909,-1256.7,0.00020547,4]
[330291063,1719234664918,-170.059563,0.00020547,2]
[330291064,1719234664927,-500.0,0.00020547,4]
[330291065,1719234664937,-500.0,0.00020547,4]
[330291066,1719234664946,-1155.94,0.00020547,4]
[330291067,1719234664956,-1233.58,0.00020547,4]
[330291068,1719234664966,-500.0,0.00020547,4]
[330291069,1719234664976,-825.41,0.00020547,4]
[330291070,1719234664986,-1536.4,0.00020547,4]
[330291071,1719234664996,-500.0,0.00020547,4]
[330291072,1719234665005,-500.0,0.00020547,4]
[330291073,1719234665015,-616.11,0.00020547,4]
[330291074,1719234665025,-152.39314271,0.00020547,4]
[330291075,1719234665035,-766.48,0.00020547,4]
[330291076,1719234665044,-1447.35,0.00020547,4]
[330291077,1719234665054,-698.01,0.00020547,4]
[330291078,1719234665064,-1293.45,0.00020547,4]
[330291079,1719234665074,-1214.1,0.00020547,4]
[330291080,1719234665083,-500.0,0.00020547,4]
[330291081,1719234665093,-500.0,0.00020547,4]
[330291082,1719234665102,-500.0,0.00020547,4]
[330291083,1719234665112,-1161.02,0.00020547,4]
[330291084,1719234665122,-500.0,0.00020547,4]
[330291085,1719234665132,-500.0,0.00020547,4]
[330291086,1719234665142,-546.3,0.00020547,4]
[330291087,1719234665152,-500.0,0.00020547,4]
[330291088,1719234665162,-1083.99,0.00020547,4]
[330291089,1719234665172,-1624.6,0.00020547,4]
[330291090,1719234665182,-500.0,0.00020547,2]
[330291091,1719234665192,-500.0,0.00020547,4]
[330291092,1719234665201,-500.0,0.00020547,4]
[330291093,1719234665211,-746.16,0.00020547,4]
[330291094,1719234665221,-841.88,0.00020547,4]
[330291095,1719234665230,-1918.02,0.00020547,4]
[330291096,1719234665240,-1003.97,0.00020547,4]
[330291097,1719234665250,-500.0,0.00020547,4]
[330291098,1719234665260,-500.0,0.00020547,4]
[330291099,1719234665270,-500.0,0.00020547,4]
[330291100,1719234665280,-2470.72,0.00020547,4]
[330291101,1719234665289,-822.29,0.00020547,4]
[330291102,1719234665300,-1351.09,0.00020547,4]
[330291103,1719234665310,-1545.77,0.00020547,4]
[330291104,1719234665320,-1773.63,0.00020547,4]
[330291105,1719234665329,-1522.1,0.00020547,4]
[330291106,1719234665339,-1647.16,0.00020547,4]
[330291107,1719234665349,-500.0,0.00020547,4]
[330291108,1719234665358,-500.0,0.00020547,4]
[330291109,1719234665544,-536.58,0.00020547,4]
[330291110,1719234665554,-500.0,0.00020547,4]
[330291111,1719234665564,-800.0,0.00020548,2]
[330291112,1719234665574,-800.0,0.00020548,2]
[330291113,1719234665583,-800.0,0.00020548,2]
[330291114,1719234665594,-800.0,0.00020548,2]
[330291115,1719234665604,-180.145641,0.00020593,2]
[330291116,1719234665613,-2702.813965,0.00020593,2]
[330291117,1719234665624,-178.57691,0.00020593,2]
[330291118,1719234665633,-160.59123,0.00020593,2]
[330291119,1719234665643,-3145.448991,0.00020593,2]
[330291120,1719234665652,-723.995839,0.00020593,2]
[330291121,1719234665662,-209.612279,0.00020593,2]
[330291122,1719234665671,-177.163464,0.00020593,2]
[330291123,1719234665680,-162.588965,0.00020593,2]
[330291124,1719234665690,-747.068877,0.00020593,2]
[330291125,1719234665699,-180.99896,0.00020593,2]
[330291126,1719234665710,-1493.37730779,0.00020767,2]
[330291127,1719234665719,-150.0,0.00020799,7]
[330291128,1719234665729,-1000.0,0.000208,3]
[330291129,1719234665738,-231.673429,0.000208,2]
[330291130,1719234665747,-231.673429,0.000208,2]
[330291131,1719234665756,-436850.23917,0.000208,2]
[330291132,1719234665766,-170.059563,0.000208,2]
[330291133,1719234665776,-170.059563,0.000208,2]
[330291134,1719234665785,-707.57,0.00020821,4]
[330291135,1719234665794,-675.73,0.00020821,4]
[330291136,1719234665803,-500.0,0.00020821,4]
[330291137,1719234665812,-500.0,0.00020821,4]
[330291138,1719234665821,-500.0,0.00020821,4]
[330291139,1719234665831,-890.58,0.00020821,4]
[330291140,1719234665840,-500.0,0.00020821,4]
[330291141,1719234665849,-615.75,0.00020821,4]
[330291142,1719234665858,-500.0,0.00020821,4]
[330291143,1719234665868,-500.0,0.00020821,4]
[330291144,1719234665877,-500.0,0.00020821,4]
[330291145,1719234665887,-605.34,0.00020821,4]
[330291146,1719234665896,-500.0,0.00020821,4]
[330291147,1719234665905,-870.76,0.00020821,4]
[330291148,1719234665914,-500.0,0.00020821,4]
[330291149,1719234665923,-500.0,0.00020821,4]
[330291150,1719234665932,-500.0,0.00020821,4]
[330291151,1719234665942,-601.49,0.00020821,4]
[330291152,1719234665951,-812.19,0.00020821,4]
[330291153,1719234665960,-500.0,0.00020821,4]
[330291154,1719234665970,-925.86,0.00020821,4]
[330291155,1719234665979,-611.19,0.00020821,4]
[330291156,1719234665988,-796.24,0.00020821,4]
[330291157,1719234665998,-738.65,0.00020821,4]
[330291158,1719234666007,-765.19,0.00020821,4]
[330291159,1719234666016,-500.0,0.00020821,4]
[330291160,1719234666026,-500.0,0.00020821,4]
[330291161,1719234666036,-500.0,0.00020821,4]
[330291162,1719234666045,-500.0,0.00020821,4]
[330291163,1719234666055,-500.0,0.00020821,4]
[330291164,1719234666064,-500.0,0.00020821,4]
[330291165,1719234666073,-500.0,0.00020821,4]
[330291166,1719234666083,-500.0,0.00020821,4]
[330291167,1719234666093,-500.0,0.00020821,4]
[330291168,1719234666102,-500.0,0.00020821,4]
[330291169,1719234666111,-500.0,0.00020821,4]
[330291170,1719234666121,-833.9,0.00020821,4]
[330291171,1719234666130,-231.12218279,0.00020821,4]
[330291172,1719234666141,-500.0,0.00020821,4]
[330291173,1719234666150,-500.0,0.00020821,4]
[330291174,1719234666160,-500.0,0.00020821,4]
[330291175,1719234666169,-500.0,0.00020821,4]
[330291176,1719234666179,-500.0,0.00020821,4]
[330291177,1719234666188,-510.71,0.00020821,4]
[330291178,1719234666197,-571.75,0.00020821,4]
[330291179,1719234666207,-896.69,0.00020821,4]
[330291180,1719234666217,-500.0,0.00020821,4]
[330291181,1719234666227,-461.13774649,0.00020821,4]
[330291182,1719234666236,-500.0,0.00020821,4]
[330291183,1719234666245,-500.0,0.00020821,4]
[330291184,1719234666254,-500.0,0.00020821,4]
[330291185,1719234666264,-1002.68,0.00020821,4]
[330291186,1719234666273,-500.0,0.00020821,4]
[330291187,1719234666283,-500.0,0.00020821,4]
[330291188,1719234666292,-1386.44,0.00020821,4]
[330291189,1719234666301,-500.0,0.00020821,4]
[330291190,1719234666310,-500.0,0.00020821,4]
[330291191,1719234666320,-500.0,0.00020821,4]
[330291192,1719234666329,-500.0,0.00020821,4]
[330291193,1719234666338,-500.0,0.00020821,4]
[330291194,1719234666347,-500.0,0.00020821,4]
[330291195,1719234666356,-500.0,0.00020821,4]
[330291196,1719234666365,-500.0,0.00020821,4]
[330291197,1719234666375,-500.0,0.00020821,4]
[330291198,1719234666385,-500.0,0.00020821,4]
[330291199,1719234666394,-500.0,0.00020821,4]
[330291200,1719234666403,-500.0,0.00020821,4]
[330291201,1719234666413,-500.0,0.00020821,4]
[330291202,1719234666423,-500.0,0.00020821,4]
[330291203,1719234666432,-500.0,0.00020821,4]
[330291204,1719234666441,-500.0,0.00020821,4]
[330291205,1719234666450,-510.58,0.00020821,4]
[330291206,1719234666459,-500.0,0.00020821,4]
[330291207,1719234666468,-500.0,0.00020821,4]
[330291208,1719234666477,-500.0,0.00020821,4]
[330291209,1719234666487,-500.0,0.00020821,4]
[330291210,1719234666496,-500.0,0.00020821,4]
[330291211,1719234666505,-500.0,0.00020821,4]
[330291212,1719234666514,-389.16,0.00020821,4]
[330291213,1719234666523,-500.0,0.00020821,4]
[330291214,1719234666535,-500.0,0.00020821,4]
[330291215,1719234666544,-500.0,0.00020821,4]
[330291216,1719234666554,-500.0,0.00020821,4]
[330291217,1719234666563,-500.0,0.00020821,4]
[330291218,1719234666572,-500.0,0.00020821,4]
[330291219,1719234666582,-500.0,0.00020821,4]
[330291220,1719234666591,-610.4,0.00020821,4]
[330291221,1719234666600,-500.0,0.00020821,4]
[330291222,1719234666611,-500.0,0.00020821,4]
[330291223,1719234666621,-500.0,0.00020821,4]
[330291224,1719234666630,-500.0,0.00020821,4]
[330291225,1719234666641,-578.19,0.00020821,4]
[330291226,1719234666650,-500.0,0.00020821,4]
[330291227,1719234666659,-500.0,0.00020821,4]
[330291228,1719234666668,-500.0,0.00020821,4]
[330291229,1719234666678,-500.0,0.00020821,4]
[330291230,1719234666687,-500.0,0.00020821,4]
[330291231,1719234666695,-500.0,0.00020821,4]
[330291232,1719234666704,-500.0,0.00020821,4]
[330291233,1719234666713,-500.0,0.00020821,4]
[330291234,1719234666723,-955.98,0.00020821,4]
[330291235,1719234666731,-500.0,0.00020821,4]
[330291236,1719234666740,-500.0,0.00020821,4]
[330291237,1719234666749,-500.0,0.00020821,4]
[330291238,1719234666758,-500.0,0.00020821,4]
[330291239,1719234666768,-500.0,0.00020821,4]
[330291240,1719234666777,-500.0,0.00020821,4]
[330291241,1719234666786,-500.0,0.00020821,4]
[330291242,1719234666795,-500.0,0.00020821,4]
[330291243,1719234666804,-500.0,0.00020821,4]
[330291244,1719234666813,-500.0,0.00020821,4]
[330291245,1719234666823,-500.0,0.00020821,4]
[330291246,1719234666832,-500.0,0.00020821,4]
[330291247,1719234666841,-500.0,0.00020821,4]
[330291248,1719234666851,-500.0,0.00020821,4]
[330291249,1719234666860,-500.0,0.00020821,4]
[330291250,1719234666869,-500.0,0.00020821,4]
[330291251,1719234666878,-500.0,0.00020821,4]
[330291252,1719234666888,-483.06,0.00020821,4]
[330291253,1719234666898,-500.0,0.00020821,4]
[330291254,1719234666907,-500.0,0.00020821,4]
[330291255,1719234666917,-500.0,0.00020821,4]
[330291256,1719234666927,-500.0,0.00020821,4]
[330291257,1719234666936,-500.0,0.00020821,4]
[330291258,1719234666945,-721.78,0.00020821,4]
[330291259,1719234666954,-500.0,0.00020821,4]
[330291260,1719234666964,-500.0,0.00020821,4]
[330291261,1719234666973,-500.0,0.00020821,4]
[330291262,1719234666982,-500.0,0.00020821,4]
[330291263,1719234666991,-433.46030925,0.00020821,4]
[330291264,1719234667000,-500.0,0.00020821,4]
[330291265,1719234667009,-500.0,0.00020821,4]
[330291266,1719234667019,-500.0,0.00020821,4]
[330291267,1719234667028,-500.0,0.00020821,4]
[330291268,1719234667037,-500.0,0.00020821,4]
[330291269,1719234667046,-500.0,0.00020821,4]
[330291270,1719234667055,-500.0,0.00020821,4]
[330291271,1719234667064,-500.0,0.00020821,4]
[330291272,1719234667073,-500.0,0.00020821,4]
[330291273,1719234667082,-500.0,0.00020821,4]
[330291274,1719234667091,-500.0,0.00020821,4]
[330291275,1719234667101,-500.0,0.00020821,4]
[330291276,1719234667110,-961.17,0.00020821,4]
[330291277,1719234667119,-500.0,0.00020821,4]
[330291278,1719234667128,-500.0,0.00020821,4]
[330291279,1719234667138,-500.0,0.00020821,4]
[330291280,1719234667147,-500.0,0.00020821,4]
[330291281,1719234667157,-500.0,0.00020821,4]
[330291282,1719234667167,-559.62,0.00020821,4]
[330291283,1719234667176,-500.0,0.00020821,4]
[330291284,1719234667185,-500.0,0.00020821,4]
[330291285,1719234667194,-500.0,0.00020821,4]
[330291286,1719234667203,-503.91,0.00020821,4]
[330291287,1719234667212,-500.0,0.00020821,4]
[330291288,1719234667222,-500.0,0.00020821,4]
[330291289,1719234667231,-641.94,0.00020821,4]
[330291290,1719234667240,-500.0,0.00020821,4]
[330291291,1719234667249,-500.0,0.00020821,4]
[330291292,1719234667258,-946.9,0.00020821,4]
[330291293,1719234667267,-2789.32,0.00020821,4]
[330291294,1719234667276,-500.0,0.00020821,4]
[330291295,1719234667285,-1021.32,0.00020821,4]
[330291296,1719234667295,-500.0,0.00020821,4]
[330291297,1719234667304,-500.0,0.00020821,4]
[330291298,1719234667313,-609.74,0.00020821,4]
[330291299,1719234667322,-2129.68,0.00020821,4]
[330291300,1719234667331,-523.1,0.00020821,4]
[330291301,1719234667341,-500.0,0.00020821,4]
[330291302,1719234667350,-604.89,0.00020821,4]
[330291303,1719234667360,-500.0,0.00020821,4]
[330291304,1719234667369,-518.22,0.00020821,4]
[330291305,1719234667378,-500.0,0.00020821,4]
[330291306,1719234667387,-539.45,0.00020821,4]
[330291307,1719234667397,-5685.35,0.00020821,4]
[330291308,1719234667407,-500.0,0.00020821,4]
[330291309,1719234667417,-8388.92,0.00020821,4]
[330291310,1719234667426,-788.23,0.00020821,4]
[330291311,1719234667436,-931.76,0.00020821,4]
[330291312,1719234667445,-558.11,0.00020821,4]
[330291313,1719234667455,-589.44,0.00020821,4]
[330291314,1719234667464,-500.0,0.00020821,4]
[330291315,1719234667473,-500.0,0.00020821,4]
[330291316,1719234667482,-500.0,0.00020821,4]
[330291317,1719234667492,-500.0,0.00020821,4]
[330291318,1719234667501,-598.81,0.00020821,4]
[330291319,1719234667510,-500.0,0.00020821,4]
[330291320,1719234667519,-500.0,0.00020821,4]
[330291321,1719234667531,-515.94,0.00020821,4]
[330291322,1719234667542,-260.11,0.00020821,4]
[330291323,1719234667551,-1333.15,0.00020821,4]
[330291324,1719234667560,-1076.06,0.00020821,4]
[330291325,1719234667571,-552.26,0.00020821,4]
[330291326,1719234667580,-500.0,0.00020821,4]
[330291327,1719234667589,-507.36,0.00020821,4]
[330291328,1719234667599,-500.0,0.00020821,4]
[330291329,1719234667610,-1022.66,0.00020821,4]
[330291330,1719234667619,-500.0,0.00020821,4]
[330291331,1719234667628,-500.0,0.00020821,4]
[330291332,1719234667639,-500.0,0.00020821,4]
[330291333,1719234667649,-4095.82,0.00020821,4]
[330291334,1719234667659,-500.0,0.00020821,4]
[330291335,1719234667669,-670.27,0.00020821,4]
[330291336,1719234667679,-500.0,0.00020821,4]
[330291337,1719234667688,-587.18,0.00020821,4]
[330291338,1719234667699,-500.0,0.00020821,4]
[330291339,1719234667709,-500.0,0.00020821,4]
[330291340,1719234667718,-500.0,0.00020821,4]
[330291341,1719234667727,-433.23439291,0.00020821,4]
[330291342,1719234667736,-599.34,0.00020821,4]
[330291343,1719234667746,-1195.25,0.00020821,4]
[330291344,1719234667755,-833.51,0.00020821,4]
[330291345,1719234667766,-500.0,0.00020821,4]
[330291346,1719234667831,-675.38,0.00020821,4]
[330291347,1719234667840,-1029.66,0.00020821,4]
[330291348,1719234667849,-500.0,0.00020821,4]
[330291349,1719234667858,-500.0,0.00020821,4]
[330291350,1719234667867,-599.32,0.00020821,4]
[330291351,1719234667876,-500.0,0.00020821,4]
[330291352,1719234667885,-751.48,0.00020821,4]
[330291353,1719234667895,-504.75,0.00020821,4]
[330291354,1719234667903,-622.88,0.00020821,4]
[330291355,1719234667912,-812.04,0.00020821,4]
[330291356,1719234667922,-500.0,0.00020821,4]
[330291357,1719234667930,-500.0,0.00020821,4]
[330291358,1719234667939,-1838.7,0.00020821,4]
[330291359,1719234667948,-500.0,0.00020821,4]
[330291360,1719234667956,-732.02,0.00020821,4]
[330291361,1719234667965,-500.0,0.00020821,4]
[330291362,1719234667974,-548.92,0.00020821,4]
[330291363,1719234667983,-500.0,0.00020821,4]
[330291364,1719234667991,-500.0,0.00020821,4]
[330291365,1719234668000,-1104.05,0.00020821,4]
[330291366,1719234668010,-500.0,0.00020821,4]
[330291367,1719234668019,-790.0,0.00020821,4]
[330291368,1719234668028,-500.0,0.00020821,4]
[330291369,1719234668037,-500.0,0.00020821,4]
[330291370,1719234668047,-950.44,0.00020821,4]
[330291371,1719234668056,-500.0,0.00020821,4]
[330291372,1719234668066,-775.48,0.00020821,4]
[330291373,1719234668076,-3276.0,0.00020821,4]
[330291374,1719234668085,-500.0,0.00020821,4]
[330291375,1719234668095,-713.29,0.00020821,4]
[330291376,1719234668104,-500.0,0.00020821,4]
[330291377,1719234668113,-500.0,0.00020821,4]
[330291378,1719234668122,-500.0,0.00020821,4]
[330291379,1719234668131,-832.62,0.00020821,4]
[330291380,1719234668142,-803.86,0.00020821,4]
[330291381,1719234668151,-500.0,0.00020821,4]
[330291382,1719234668160,-832.67,0.00020821,4]
[330291383,1719234668169,-997.41,0.00020821,4]
[330291384,1719234668178,-689.81,0.00020821,4]
[330291385,1719234668187,-628.73,0.00020821,4]
[330291386,1719234668196,-500.0,0.00020821,4]
[330291387,1719234668205,-342.39178193,0.00020821,4]
[330291388,1719234668215,-1136.57,0.00020821,4]
[330291389,1719234668224,-594.74,0.00020821,4]
[330291390,1719234668234,-500.0,0.00020821,4]
[330291391,1719234668243,-500.0,0.00020821,4]
[330291392,1719234668252,-500.0,0.00020821,4]
[330291393,1719234668260,-556.0,0.00020821,4]
[330291394,1719234668269,-2120.74,0.00020821,4]
[330291395,1719234668279,-500.0,0.00020821,4]
[330291396,1719234668287,-500.0,0.00020821,4]
[330291397,1719234668296,-1028.46,0.00020821,4]
[330291398,1719234668305,-500.0,0.00020821,4]
[330291399,1719234668315,-500.0,0.00020821,4]
[330291400,1719234668324,-747.27,0.00020821,4]
[330291401,1719234668333,-170.059563,0.00020821,2]
[330291402,1719234668342,-622.5,0.00020821,4]
[330291403,1719234668351,-500.0,0.00020821,4]
[330291404,1719234668360,-1256.7,0.00020821,4]
[330291405,1719234668369,-170.059567,0.00020821,2]
[330291406,1719234668379,-500.0,0.00020821,4]
[330291407,1719234668388,-500.0,0.00020821,4]
[330291408,1719234668397,-1155.94,0.00020821,4]
[330291409,1719234668406,-1233.58,0.00020821,4]
[330291410,1719234668415,-500.0,0.00020821,4]
[330291411,1719234668424,-825.41,0.00020821,4]
[330291412,1719234668433,-1536.4,0.00020821,4]
[330291413,1719234668442,-500.0,0.00020821,4]
[330291414,1719234668451,-500.0,0.00020821,4]
[330291415,1719234668460,-616.11,0.00020821,4]
[330291416,1719234668469,-766.48,0.00020821,4]
[330291417,1719234668478,-1447.35,0.00020821,4]
[330291418,1719234668488,-698.01,0.00020821,4]
[330291419,1719234668497,-1293.45,0.00020821,4]
[330291420,1719234668506,-1214.1,0.00020821,4]
[330291421,1719234668515,-500.0,0.00020821,4]
[330291422,1719234668524,-258.34856013,0.00020821,4]
[330291423,1719234668538,-500.0,0.00020821,4]
[330291424,1719234668547,-1161.02,0.00020821,4]
[330291425,1719234668556,-500.0,0.00020821,4]
[330291426,1719234668566,-500.0,0.00020821,4]
[330291427,1719234668576,-500.0,0.00020821,4]
[330291428,1719234668585,-1083.99,0.00020821,4]
[330291429,1719234668594,-1624.6,0.00020821,4]
[330291430,1719234668604,-500.0,0.00020821,2]
[330291431,1719234668614,-546.3,0.00020821,4]
[330291432,1719234668623,-500.0,0.00020821,4]
[330291433,1719234668632,-500.0,0.00020821,4]
[330291434,1719234668644,-746.16,0.00020821,4]
[330291435,1719234668653,-841.88,0.00020821,4]
[330291436,1719234668662,-1918.02,0.00020821,4]
[330291437,1719234668671,-1003.97,0.00020821,4]
[330291438,1719234668680,-500.0,0.00020821,4]
[330291439,1719234668690,-500.0,0.00020821,4]
[330291440,1719234668699,-500.0,0.00020821,4]
[330291441,1719234668710,-2470.72,0.00020821,4]
[330291442,1719234668720,-1351.09,0.00020821,4]
[330291443,1719234668729,-822.29,0.00020821,4]
[330291444,1719234668738,-1545.77,0.00020821,4]
[330291445,1719234668747,-1773.63,0.00020821,4]
[330291446,1719234668756,-1522.1,0.00020821,4]
[330291447,1719234668765,-1647.16,0.00020821,4]
[330291448,1719234668774,-276.70904221,0.00020821,4]
[330291449,1719234668783,-500.0,0.00020821,4]
[330291450,1719234668793,-536.58,0.00020821,4]
[330291451,1719234668802,-151.0,0.00020827,2]
[330291452,1719234668811,-2702.813965,0.00020851,2]
[330291453,1719234668820,-3145.448991,0.00020851,2]
[330291454,1719234668828,-723.995839,0.00020851,2]
[330291455,1719234668837,-747.068877,0.00020851,2]
[330291456,1719234668847,-180.99896,0.00020851,2]
[330291457,1719234668856,-231.673429,0.00020851,2]
[330291458,1719234668866,-231.673429,0.00020851,2]
[330291459,1719234668875,-828.70420662,0.0002087,2]
[330291460,1719234668884,-231.673429,0.000209,2]
[330291461,1719234668898,-231.673437,0.000209,2]
[330291462,1719234668907,-170.5216528,0.000209,2]
[330291463,1719234668917,-939.0,0.00020959,2]
[330291464,1719234668926,-3200.0,0.00021,2]
[330291465,1719234668935,-4004.49556097,0.00021,2]
[330291466,1719234668944,-1250.0,0.00021,2]
[330291467,1719234668953,-600.0,0.0002101,2]
[330291468,1719234668962,-645.06,0.00021066,2]
[330291469,1719234668971,-50000.0,0.0002107,2]
[330291470,1719234668981,-235.68246592,0.00021078,2]
[330291471,1719234668990,-10537.00283536,0.00021094,2]
[330291472,1719234669000,-707.57,0.00021095,4]
[330291473,1719234669009,-675.73,0.00021095,4]
[330291474,1719234669019,-500.0,0.00021095,4]
[330291475,1719234669029,-500.0,0.00021095,4]
[330291476,1719234669039,-500.0,0.00021095,4]
[330291477,1719234669048,-890.58,0.00021095,4]
[330291478,1719234669058,-500.0,0.00021095,4]
[330291479,1719234669068,-615.75,0.00021095,4]
[330291480,1719234669077,-500.0,0.00021095,4]
[330291481,1719234669087,-500.0,0.00021095,4]
[330291482,1719234669096,-500.0,0.00021095,4]
[330291483,1719234669107,-605.34,0.00021095,4]
[330291484,1719234669117,-500.0,0.00021095,4]
[330291485,1719234669127,-870.76,0.00021095,4]
[330291486,1719234669142,-500.0,0.00021095,4]
[330291487,1719234669152,-500.0,0.00021095,4]
[330291488,1719234669163,-500.0,0.00021095,4]
[330291489,1719234669172,-601.49,0.00021095,4]
[330291490,1719234669182,-812.19,0.00021095,4]
[330291491,1719234669192,-500.0,0.00021095,4]
[330291492,1719234669202,-925.86,0.00021095,4]
[330291493,1719234669211,-611.19,0.00021095,4]
[330291494,1719234669221,-796.24,0.00021095,4]
[330291495,1719234669231,-738.65,0.00021095,4]
[330291496,1719234669240,-765.19,0.00021095,4]
[330291497,1719234669250,-500.0,0.00021095,4]
[330291498,1719234669260,-500.0,0.00021095,4]
[330291499,1719234669269,-500.0,0.00021095,4]
[330291500,1719234669279,-500.0,0.00021095,4]
[330291501,1719234669289,-500.0,0.00021095,4]
[330291502,1719234669299,-500.0,0.00021095,4]
[330291503,1719234669311,-500.0,0.00021095,4]
[330291504,1719234669320,-500.0,0.00021095,4]
[330291505,1719234669330,-500.0,0.00021095,4]
[330291506,1719234669340,-500.0,0.00021095,4]
[330291507,1719234669350,-500.0,0.00021095,4]
[330291508,1719234669360,-833.9,0.00021095,4]
[330291509,1719234669369,-500.0,0.00021095,4]
[330291510,1719234669380,-500.0,0.00021095,4]
[330291511,1719234669392,-500.0,0.00021095,4]
[330291512,1719234669403,-589.78,0.00021095,4]
[330291513,1719234669413,-500.0,0.00021095,4]
[330291514,1719234669422,-510.71,0.00021095,4]
[330291515,1719234669432,-571.75,0.00021095,4]
[330291516,1719234669441,-896.69,0.00021095,4]
[330291517,1719234669451,-500.0,0.00021095,4]
[330291518,1719234669460,-500.0,0.00021095,4]
[330291519,1719234669470,-500.0,0.00021095,4]
[330291520,1719234669479,-500.0,0.00021095,4]
[330291521,1719234669489,-1002.68,0.00021095,4]